fUST/lending_fUST_20240120
["ID","MTS","AMOUNT","RATE_DAILY","PERIOD"]
[312234826,1705697449912,-500.0,0.00041095,14]
[312234829,1705697449922,-505.91050985,0.00041095,31]
[312234831,1705697449931,-255.64911985,0.00041095,31]
[312234832,1705697449941,-500.0,0.00041095,31]
[312234834,1705697449951,-500.0,0.00041095,31]
[312234836,1705697449961,-500.0,0.00041095,31]
[312234838,1705697449970,-505.9027438,0.00041095,31]
[312234840,1705697449980,-847.21,0.00041095,31]
[312234842,1705697449989,-5557.99,0.00041095,31]
[312234844,1705697449998,-534.41678355,0.00041095,31]
[312234846,1705697450008,-870.85,0.00041095,31]
[312234848,1705697450017,-500.0,0.00041095,31]
[312234850,1705697450027,-500.0,0.00041095,31]
[312234852,1705697450037,-500.0,0.00041095,31]
[312234854,1705697450047,-500.0,0.00041095,31]
[312234856,1705697450057,-195.31170646,0.00041095,10]
[312234858,1705697450067,-1084.19,0.00041095,31]
[312234860,1705697450076,-500.0,0.00041095,31]
[312234862,1705697450086,-364.79966267,0.00041095,31]
[312234864,1705697450095,-579.13966273,0.00041095,31]
[312234867,1705697450116,-500.0,0.00041095,31]
[312234870,1705697450132,-500.0,0.00041095,31]
[312234873,1705697450152,-500.0,0.00041095,31]
[312234876,1705697450171,-500.0,0.00041095,31]
[312234878,1705697450187,-4619.97,0.00041095,31]
[312234881,1705697450205,-1270.64,0.00041095,31]
[312234884,1705697450224,-500.0,0.00041095,31]
[312234887,1705697450242,-506.78784956,0.00041095,31]
[312234890,1705697450259,-500.0,0.00041095,31]
[312234893,1705697450278,-500.0,0.00041095,31]
[312234896,1705697450294,-500.0,0.00041095,7]
[312234898,1705697450311,-500.0,0.00041095,20]
[312234901,1705697450326,-500.0,0.00041095,31]
[312234904,1705697450342,-500.0,0.00041095,31]
[312234906,1705697450355,-6484.44,0.00041095,31]
[312234909,1705697450369,-500.0,0.00041095,31]
[312234911,1705697450383,-500.0,0.00041095,31]
[312234914,1705697450398,-500.0,0.00041095,31]
[312234916,1705697450412,-1110.77,0.00041095,31]
[312234918,1705697450427,-500.0,0.00041095,31]
[312234921,1705697450443,-13925.78,0.00041095,31]
[312234924,1705697450457,-541.66,0.00041095,31]
[312234926,1705697450471,-500.58497799,0.00041095,31]
[312234929,1705697450486,-500.0,0.00041095,31]
[312234931,1705697450498,-500.0,0.00041095,31]
[312234933,1705697450512,-500.0,0.00041095,31]
[312234936,1705697450527,-500.0,0.00041095,31]
[312234938,1705697450541,-500.0,0.00041095,31]
[312234941,1705697450556,-500.0,0.00041095,31]
[312234943,1705697450573,-500.38185685,0.00041095,31]
[312234946,1705697450588,-500.0,0.00041095,31]
[312234948,1705697450602,-500.0,0.00041095,31]
[312234950,1705697450615,-500.0,0.00041095,31]
[312234953,1705697450630,-1315.95,0.00041095,31]
[312234955,1705697450645,-500.0,0.00041095,31]
[312234958,1705697450660,-500.0,0.00041095,31]
[312234960,1705697450674,-514.24045562,0.00041095,31]
[312234963,1705697450688,-500.0,0.00041095,31]
[312234965,1705697450703,-500.0,0.00041095,31]
[312234968,1705697450717,-500.0,0.00041095,31]
[312234979,1705697450813,-500.0,0.00041095,31]
[312234981,1705697450826,-500.0,0.00041095,31]
[312234983,1705697450836,-500.0,0.00041095,31]
[312234985,1705697450846,-500.0,0.00041095,31]
[312234987,1705697450856,-500.0,0.00041095,31]
[312234989,1705697450865,-902.37,0.00041095,31]
[312234991,1705697450875,-500.0,0.00041095,31]
[312234993,1705697450885,-526.91670753,0.00041095,31]
[312234995,1705697450894,-500.0,0.00041095,31]
[312234997,1705697450905,-500.0,0.00041095,31]
[312234999,1705697450916,-866.88,0.00041095,31]
[312235001,1705697450926,-512.34032242,0.00041095,31]
[312235003,1705697450936,-623.74828753,0.00041095,31]
[312235005,1705697450946,-1915.95155876,0.00041095,10]
[312235007,1705697450956,-500.0,0.00041095,31]
[312235009,1705697450966,-500.0,0.00041095,31]
[312235011,1705697450976,-601.69002037,0.00041095,31]
[312235013,1705697450986,-500.0,0.00041095,31]
[312235014,1705697450996,-500.0,0.00041095,31]
[312235017,1705697451007,-1222.22,0.00041095,31]
[312235019,1705697451018,-500.0,0.00041095,31]
[312235021,1705697451027,-500.0,0.00041095,31]
[312235023,1705697451037,-500.0,0.00041095,31]
[312235025,1705697451046,-500.0,0.00041095,31]
[312235027,1705697451056,-500.0,0.00041095,31]
[312235029,1705697451065,-500.0,0.00041095,31]
[312235030,1705697451074,-864.4,0.00041095,31]
[312235032,1705697451084,-500.0,0.00041095,31]
[312235034,1705697451094,-500.0,0.00041095,31]
[312235036,1705697451103,-1726.18,0.00041095,31]
[312235038,1705697451113,-1304.61,0.00041095,31]
[312235040,1705697451123,-6377.44203263,0.00041095,7]
[312235042,1705697451132,-500.0,0.00041095,31]
[312235044,1705697451141,-500.0,0.00041095,31]
[312235046,1705697451151,-854.56,0.00041095,31]
[312235048,1705697451162,-402.28651068,0.00041095,31]
[312235050,1705697451171,-500.0,0.00041095,31]
[312235052,1705697451180,-500.0,0.00041095,31]
[312235054,1705697451189,-500.0,0.00041095,31]
[312235056,1705697451198,-562.89914058,0.00041095,31]
[312235058,1705697451207,-500.0,0.00041095,31]
[312235060,1705697451216,-2687.15,0.00041095,31]
[312235062,1705697451225,-500.0,0.00041095,31]
[312235064,1705697451234,-500.0,0.00041095,31]
[312235066,1705697451244,-500.0,0.00041095,31]
[312235068,1705697451254,-500.61638152,0.00041095,31]
[312235070,1705697451263,-500.0,0.00041095,31]
[312235071,1705697451273,-500.0,0.00041095,31]
[312235073,1705697451283,-500.0,0.00041095,31]
[312235075,1705697451294,-500.0,0.00041095,31]
[312235077,1705697451303,-500.0,0.00041095,31]
[312235079,1705697451314,-500.0,0.00041095,31]
[312235081,1705697451323,-502.91683953,0.00041095,31]
[312235083,1705697451332,-500.0,0.00041095,31]
[312235085,1705697451341,-500.0,0.00041095,31]
[312235087,1705697451351,-848.45,0.00041095,31]
[312235089,1705697451360,-2426.12,0.00041095,31]
[312235091,1705697451369,-231.31571371,0.00041095,31]
[312235093,1705697451378,-500.0,0.00041095,31]
[312235095,1705697451388,-246.09219212,0.00041095,31]
[312235097,1705697451398,-500.0,0.00041095,31]
[312235099,1705697451407,-349.95715161,0.00041095,31]
[312235100,1705697451417,-735.83,0.00041095,31]
[312235102,1705697451427,-500.0,0.00041095,31]
[312235105,1705697451447,-500.0,0.00041095,31]
[312235108,1705697451459,-500.0,0.00041095,31]
[312235110,1705697451469,-296.99584848,0.00041095,31]
[312235112,1705697451479,-500.0,0.00041095,31]
[312235114,1705697451490,-500.0,0.00041095,31]
[312235116,1705697451499,-2001.01,0.00041095,31]
[312235118,1705697451509,-500.0,0.00041095,31]
[312235120,1705697451519,-500.0,0.00041095,31]
[312235122,1705697451530,-462.82894798,0.00041095,31]
[312235124,1705697451541,-787.98,0.00041095,31]
[312235126,1705697451552,-500.0,0.00041095,31]
[312235128,1705697451564,-500.88805801,0.00041095,31]
[312235130,1705697451574,-500.0,0.00041095,31]
[312235132,1705697451585,-531.37845023,0.00041095,31]
[312235134,1705697451596,-500.0,0.00041095,31]
[312235136,1705697451606,-151.0,0.00041095,2]
[312235138,1705697451616,-151.0,0.00041095,2]
[312235140,1705697451626,-151.0,0.00041095,2]
[312235142,1705697451637,-151.0,0.00041095,2]
[312235144,1705697451647,-151.0,0.00041095,2]
[312235146,1705697451656,-151.0,0.00041095,2]
[312235148,1705697451667,-411.419243,0.00041095,2]
[312235150,1705697451677,-411.419243,0.00041095,2]
[312235151,1705697451688,-411.419243,0.00041095,2]
[312235153,1705697451698,-411.419243,0.00041095,2]
[312235155,1705697451709,-411.419243,0.00041095,2]
[312235158,1705697451720,-411.419243,0.00041095,2]
[312235160,1705697451731,-1265.817322,0.00041095,2]
[312235161,1705697451741,-1265.817322,0.00041095,2]
[312235163,1705697451752,-1265.817322,0.00041095,2]
[312235165,1705697451762,-1265.817322,0.00041095,2]
[312235167,1705697451772,-1265.817322,0.00041095,2]
[312235169,1705697451782,-1265.817322,0.00041095,2]
[312235172,1705697451793,-10000.0,0.00041095,2]
[312235173,1705697451804,-10000.0,0.00041095,2]
[312235175,1705697451814,-10000.0,0.00041095,2]
[312235177,1705697451824,-10000.0,0.00041095,2]
[312235179,1705697451835,-10000.0,0.00041095,2]
[312235181,1705697451845,-10000.0,0.00041095,2]
[312235183,1705697451855,-10000.0,0.00041095,2]
[312235185,1705697451865,-10000.0,0.00041095,2]
[312235187,1705697451874,-8446.869728,0.00041095,2]
[312235189,1705697451885,-1000.0,0.00041128,14]
[312235191,1705697451895,-1000.0,0.00041128,14]
[312235193,1705697451903,-1000.0,0.00041128,14]
[312235195,1705697451915,-159.79980507,0.00041211,30]
[312235197,1705697451926,-154.43137173,0.00041298,30]
[312235206,1705697452012,-154.43137173,0.00041307,30]
[312235209,1705697452026,-500.0,0.00041369,31]
[312235211,1705697452036,-500.0,0.00041369,31]
[312235213,1705697452046,-500.0,0.00041369,31]
[312235214,1705697452055,-500.0,0.00041369,31]
[312235217,1705697452066,-500.0,0.00041369,31]
[312235218,1705697452076,-500.0,0.00041369,31]
[312235219,1705697452086,-322.80856914,0.00041369,31]
[312235220,1705697452096,-581.02,0.00041369,31]
[312235221,1705697452106,-500.0,0.00041369,31]
[312235222,1705697452116,-500.0,0.00041369,31]
[312235223,1705697452126,-500.0,0.00041369,31]
[312235224,1705697452136,-203.19286283,0.00041369,31]
[312235225,1705697452146,-500.0,0.00041369,31]
[312235226,1705697452156,-500.0,0.00041369,31]
[312235227,1705697452167,-523.89688111,0.00041369,2]
[312235228,1705697452176,-500.0,0.00041369,31]
[312235229,1705697452186,-500.0,0.00041369,31]
[312235230,1705697452196,-500.0,0.00041369,31]
[312235231,1705697452205,-500.0,0.00041369,31]
[312235232,1705697452215,-202.28537969,0.00041369,31]
[312235233,1705697452225,-500.0,0.00041369,31]
[312235234,1705697452236,-500.0,0.00041369,31]
[312235235,1705697452245,-500.0,0.00041369,31]
[312235236,1705697452255,-500.0,0.00041369,31]
[312235237,1705697452265,-500.0,0.00041369,31]
[312235238,1705697452274,-500.0,0.00041369,31]
[312235240,1705697452283,-500.0,0.00041369,31]
[312235241,1705697452292,-500.0,0.00041369,31]
[312235243,1705697452301,-500.0,0.00041369,14]
[312235245,1705697452310,-500.0,0.00041369,31]
[312235247,1705697452320,-500.0,0.00041369,31]
[312235249,1705697452329,-595.41759042,0.00041369,31]
[312235251,1705697452339,-500.69125708,0.00041369,31]
[312235253,1705697452348,-500.0,0.00041369,31]
[312235255,1705697452356,-283.55494678,0.00041369,31]
[312235257,1705697452366,-500.0,0.00041369,31]
[312235259,1705697452376,-500.0,0.00041369,31]
[312235261,1705697452385,-500.0,0.00041369,31]
[312235263,1705697452394,-187.46119069,0.00041369,31]
[312235265,1705697452403,-507.47214751,0.00041369,31]
[312235267,1705697452413,-500.0,0.00041369,31]
[312235269,1705697452422,-500.0,0.00041369,7]
[312235271,1705697452432,-500.0,0.00041369,31]
[312235273,1705697452442,-633.835,0.00041369,7]
[312235275,1705697452451,-500.0,0.00041369,31]
[312235277,1705697452460,-500.0,0.00041369,31]
[312235279,1705697452469,-500.0,0.00041369,31]
[312235281,1705697452478,-504.88440796,0.00041369,31]
[312235283,1705697452487,-500.0,0.00041369,31]
[312235285,1705697452497,-500.0,0.00041369,31]
[312235287,1705697452506,-501.76139814,0.00041369,31]
[312235289,1705697452515,-500.0,0.00041369,31]
[312235291,1705697452524,-581.11900681,0.00041369,31]
[312235293,1705697452533,-500.0,0.00041369,31]
[312235295,1705697452547,-500.0,0.00041369,31]
[312235297,1705697452555,-500.0,0.00041369,31]
[312235298,1705697452565,-500.0,0.00041369,31]
[312235300,1705697452576,-500.0,0.00041369,31]
[312235302,1705697452586,-150.0,0.00041369,31]
[312235304,1705697452596,-500.0,0.00041369,31]
[312235306,1705697452605,-500.0,0.00041369,31]
[312235308,1705697452614,-500.0,0.00041369,7]
[312235310,1705697452623,-500.0,0.00041369,2]
[312235312,1705697452634,-500.0,0.00041369,31]
[312235314,1705697452643,-528.56,0.00041369,31]
[312235317,1705697452653,-500.0,0.00041369,31]
[312235318,1705697452664,-500.0,0.00041369,31]
[312235320,1705697452673,-500.0,0.00041369,31]
[312235322,1705697452682,-500.0,0.00041369,31]
[312235324,1705697452691,-554.49,0.00041369,31]
[312235326,1705697452700,-500.0,0.00041369,31]
[312235328,1705697452709,-500.0,0.00041369,31]
[312235330,1705697452718,-500.0,0.00041369,31]
[312235332,1705697452728,-501.19114178,0.00041369,7]
[312235334,1705697452738,-200.0,0.00041369,31]
[312235336,1705697452747,-499.25770796,0.00041369,31]
[312235338,1705697452756,-500.0,0.00041369,31]
[312235340,1705697452765,-525.01,0.00041369,31]
[312235342,1705697452774,-500.0,0.00041369,31]
[312235344,1705697452784,-500.0,0.00041369,31]
[312235346,1705697452793,-500.0,0.00041369,31]
[312235348,1705697452803,-500.0,0.00041369,31]
[312235350,1705697452812,-500.0,0.00041369,31]
[312235352,1705697452821,-500.0,0.00041369,31]
[312235354,1705697452831,-500.0,0.00041369,31]
[312235356,1705697452840,-895.14,0.00041369,31]
[312235358,1705697452850,-500.0,0.00041369,31]
[312235360,1705697452859,-500.0,0.00041369,31]
[312235362,1705697452869,-500.0,0.00041369,31]
[312235365,1705697452879,-500.0,0.00041369,31]
[312235367,1705697452888,-500.0,0.00041369,31]
[312235368,1705697452897,-500.0,0.00041369,31]
[312235370,1705697452906,-500.0,0.00041369,31]
[312235372,1705697452917,-500.0,0.00041369,31]
[312235374,1705697452926,-500.0,0.00041369,31]
[312235376,1705697452936,-500.0,0.00041369,31]
[312235378,1705697452946,-468.5128347,0.00041369,31]
[312235380,1705697452956,-500.0,0.00041369,31]
[312235382,1705697452965,-500.0,0.00041369,31]
[312235384,1705697452974,-500.0,0.00041369,31]
[312235386,1705697452984,-1000.0,0.00041369,2]
[312235388,1705697452994,-502.98022634,0.00041369,31]
[312235396,1705697453058,-500.0,0.00041369,31]
[312235398,1705697453068,-268.3476252,0.00041369,31]
[312235400,1705697453077,-500.0,0.00041369,31]
[312235402,1705697453086,-500.0,0.00041369,31]
[312235404,1705697453095,-500.0,0.00041369,31]
[312235406,1705697453105,-500.0,0.00041369,31]
[312235408,1705697453114,-500.0,0.00041369,31]
[312235410,1705697453124,-500.0,0.00041369,31]
[312235412,1705697453134,-505.54243636,0.00041369,31]
[312235414,1705697453143,-500.0,0.00041369,31]
[312235416,1705697453153,-500.0,0.00041369,31]
[312235418,1705697453163,-500.0,0.00041369,31]
[312235420,1705697453172,-500.0,0.00041369,31]
[312235422,1705697453181,-500.0,0.00041369,31]
[312235424,1705697453191,-500.0,0.00041369,31]
[312235426,1705697453201,-500.0,0.00041369,31]
[312235428,1705697453210,-500.0,0.00041369,31]
[312235430,1705697453219,-533.46,0.00041369,31]
[312235432,1705697453228,-500.0,0.00041369,31]
[312235434,1705697453238,-500.0,0.00041369,31]
[312235436,1705697453247,-607.03,0.00041369,31]
[312235438,1705697453256,-500.0,0.00041369,31]
[312235440,1705697453265,-500.0,0.00041369,31]
[312235442,1705697453275,-397.88999285,0.00041369,31]
[312235444,1705697453284,-584.08061125,0.00041369,31]
[312235446,1705697453293,-500.0,0.00041369,31]
[312235448,1705697453303,-500.0,0.00041369,31]
[312235450,1705697453313,-500.51110495,0.00041369,31]
[312235452,1705697453322,-500.0,0.00041369,31]
[312235454,1705697453331,-500.0,0.00041369,31]
[312235456,1705697453341,-500.0,0.00041369,31]
[312235458,1705697453350,-601.58693995,0.00041369,31]
[312235460,1705697453359,-504.32707851,0.00041369,31]
[312235462,1705697453369,-500.0,0.00041369,31]
[312235464,1705697453377,-500.0,0.00041369,31]
[312235466,1705697453387,-500.0,0.00041369,31]
[312235468,1705697453397,-500.0,0.00041369,31]
[312235470,1705697453406,-500.0,0.00041369,31]
[312235472,1705697453418,-429.93555414,0.00041369,31]
[312235474,1705697453427,-500.0,0.00041369,31]
[312235476,1705697453436,-509.02632323,0.00041369,31]
[312235478,1705697453445,-500.0,0.00041369,31]
[312235480,1705697453454,-500.0,0.00041369,31]
[312235482,1705697453463,-178.90377653,0.00041369,2]
[312235484,1705697453473,-597.25,0.00041369,31]
[312235486,1705697453482,-500.0,0.00041369,31]
[312235488,1705697453492,-500.0,0.00041369,31]
[312235490,1705697453501,-385.78532965,0.00041369,31]
[312235492,1705697453510,-500.0,0.00041369,2]
[312235494,1705697453520,-500.5698228,0.00041369,31]
[312235496,1705697453529,-1000.0,0.00041369,2]
[312235498,1705697453538,-500.0,0.00041369,31]
[312235500,1705697453548,-500.0,0.00041369,31]
[312235502,1705697453559,-500.0,0.00041369,31]
[312235504,1705697453569,-500.0,0.00041369,31]
[312235506,1705697453578,-773.19,0.00041369,31]
[312235508,1705697453587,-500.0,0.00041369,31]
[312235510,1705697453597,-212.7852503,0.00041369,31]
[312235512,1705697453606,-310.58802981,0.00041369,2]
[312235514,1705697453616,-500.0,0.00041369,31]
[312235516,1705697453625,-500.0,0.00041369,31]
[312235518,1705697453635,-500.0,0.00041369,31]
[312235520,1705697453645,-424.65371213,0.00041369,31]
[312235522,1705697453655,-752.68,0.00041369,31]
[312235524,1705697453667,-567.13,0.00041369,31]
[312235526,1705697453677,-500.0,0.00041369,31]
[312235528,1705697453686,-500.0,0.00041369,31]
[312235530,1705697453696,-500.0,0.00041369,31]
[312235532,1705697453705,-500.0,0.00041369,31]
[312235534,1705697453714,-803.66,0.00041369,31]
[312235536,1705697453723,-500.0,0.00041369,31]
[312235538,1705697453733,-500.0,0.00041369,31]
[312235540,1705697453743,-500.0,0.00041369,31]
[312235542,1705697453753,-500.0,0.00041369,31]
[312235544,1705697453762,-1003.95,0.00041369,31]
[312235546,1705697453771,-169.51081011,0.00041369,31]
[312235548,1705697453780,-500.0,0.00041369,31]
[312235550,1705697453789,-500.0,0.00041369,31]
[312235552,1705697453798,-500.0,0.00041369,31]
[312235554,1705697453807,-500.0,0.00041369,31]
[312235556,1705697453817,-500.0,0.00041369,31]
[312235558,1705697453826,-1062.0,0.00041369,31]
[312235560,1705697453835,-500.0,0.00041369,31]
[312235562,1705697453844,-5057.44,0.00041369,31]
[312235564,1705697453855,-1297.74,0.00041369,31]
[312235565,1705697453863,-500.0,0.00041369,31]
[312235568,1705697453873,-264.90230859,0.00041369,31]
[312235569,1705697453882,-500.0,0.00041369,31]
[312235572,1705697453892,-500.0,0.00041369,31]
[312235573,1705697453901,-1104.48,0.00041369,31]
[312235575,1705697453912,-548.54753087,0.00041369,31]
[312235577,1705697453921,-500.0,0.00041369,31]
[312235579,1705697453930,-500.0,0.00041369,31]
[312235581,1705697453940,-500.0,0.00041369,31]
[312235590,1705697454004,-24141.45,0.00041369,14]
[312235592,1705697454014,-631.74,0.00041369,31]
[312235594,1705697454024,-500.0,0.00041369,31]
[312235596,1705697454033,-500.0,0.00041369,31]
[312235598,1705697454043,-500.0,0.00041369,31]
[312235600,1705697454052,-500.0,0.00041369,31]
[312235602,1705697454061,-500.0,0.00041369,31]
[312235604,1705697454071,-500.0,0.00041369,31]
[312235606,1705697454082,-500.0,0.00041369,31]
[312235608,1705697454091,-4200.15,0.00041369,31]
[312235610,1705697454102,-2170.21,0.00041369,31]
[312235612,1705697454111,-500.0,0.00041369,31]
[312235614,1705697454121,-526.05575528,0.00041369,31]
[312235616,1705697454130,-500.0,0.00041369,31]
[312235618,1705697454140,-510.24,0.00041369,31]
[312235620,1705697454150,-1595.49,0.00041369,31]
[312235622,1705697454161,-500.0,0.00041369,31]
[312235624,1705697454170,-523.61,0.00041369,31]
[312235626,1705697454179,-500.0,0.00041369,31]
[312235628,1705697454188,-500.0,0.00041369,31]
[312235629,1705697454197,-501.2440382,0.00041369,31]
[312235632,1705697454207,-500.0,0.00041369,31]
[312235633,1705697454216,-500.0,0.00041369,31]
[312235636,1705697454226,-500.0,0.00041369,31]
[312235638,1705697454236,-500.0,0.00041369,31]
[312235639,1705697454245,-500.0,0.00041369,31]
[312235641,1705697454254,-417.65691159,0.00041369,31]
[312235644,1705697454264,-500.0,0.00041369,31]
[312235646,1705697454274,-500.0,0.00041369,31]
[312235647,1705697454283,-500.0,0.00041369,31]
[312235649,1705697454292,-500.0,0.00041369,31]
[312235651,1705697454302,-551.9331942,0.00041369,31]
[312235654,1705697454311,-500.0,0.00041369,31]
[312235655,1705697454321,-500.0,0.00041369,31]
[312235657,1705697454330,-500.0,0.00041369,31]
[312235659,1705697454340,-500.0,0.00041369,31]
[312235661,1705697454349,-500.33320496,0.00041369,31]
[312235663,1705697454359,-500.0,0.00041369,31]
[312235665,1705697454368,-500.0,0.00041369,31]
[312235667,1705697454377,-500.0,0.00041369,31]
[312235669,1705697454386,-500.0,0.00041369,31]
[312235671,1705697454396,-744.11,0.00041369,31]
[312235673,1705697454405,-500.0,0.00041369,31]
[312235675,1705697454417,-500.0,0.00041369,31]
[312235677,1705697454426,-284.931926,0.00041369,14]
[312235679,1705697454436,-542.74265134,0.00041369,31]
[312235682,1705697454446,-180.91474899,0.00041369,31]
[312235684,1705697454455,-500.0,0.00041369,31]
[312235686,1705697454464,-847.21,0.00041369,31]
[312235688,1705697454478,-5557.99,0.00041369,31]
[312235690,1705697454487,-870.85,0.00041369,31]
[312235692,1705697454496,-503.38100866,0.00041369,31]
[312235694,1705697454505,-500.0,0.00041369,31]
[312235696,1705697454514,-1084.19,0.00041369,31]
[312235698,1705697454524,-500.0,0.00041369,31]
[312235700,1705697454533,-500.0,0.00041369,31]
[312235702,1705697454542,-558.98499272,0.00041369,31]
[312235703,1705697454552,-518.51183488,0.00041369,31]
[312235704,1705697454563,-500.0,0.00041369,31]
[312235705,1705697454572,-4619.97,0.00041369,31]
[312235706,1705697454582,-1270.64,0.00041369,31]
[312235707,1705697454591,-503.96709031,0.00041369,31]
[312235708,1705697454601,-451.76652904,0.00041369,31]
[312235710,1705697454610,-500.0,0.00041369,31]
[312235712,1705697454620,-500.0,0.00041369,7]
[312235714,1705697454629,-500.0,0.00041369,20]
[312235716,1705697454639,-639.6285096,0.00041369,31]
[312235718,1705697454648,-500.0,0.00041369,31]
[312235720,1705697454658,-6484.44,0.00041369,31]
[312235722,1705697454668,-500.0,0.00041369,31]
[312235724,1705697454678,-500.0,0.00041369,31]
[312235726,1705697454687,-1110.77,0.00041369,31]
[312235728,1705697454696,-500.0,0.00041369,31]
[312235730,1705697454705,-500.0,0.00041369,31]
[312235732,1705697454714,-13925.78,0.00041369,31]
[312235734,1705697454723,-541.66,0.00041369,31]
[312235736,1705697454732,-500.0,0.00041369,31]
[312235738,1705697454741,-500.0,0.00041369,31]
[312235740,1705697454750,-500.0,0.00041369,31]
[312235742,1705697454759,-500.0,0.00041369,31]
[312235744,1705697454768,-500.0,0.00041369,31]
[312235746,1705697454778,-500.0,0.00041369,31]
[312235748,1705697454787,-500.0,0.00041369,31]
[312235750,1705697454796,-507.80576865,0.00041369,31]
[312235753,1705697454806,-500.0,0.00041369,31]
[312235755,1705697454815,-1315.95,0.00041369,31]
[312235757,1705697454824,-500.0,0.00041369,31]
[312235764,1705697454882,-500.0,0.00041369,31]
[312235766,1705697454891,-500.0,0.00041369,31]
[312235768,1705697454903,-501.06750293,0.00041369,31]
[312235770,1705697454913,-500.0,0.00041369,31]
[312235772,1705697454922,-500.0,0.00041369,31]
[312235774,1705697454931,-500.0,0.00041369,31]
[312235776,1705697454940,-500.0,0.00041369,31]
[312235778,1705697454950,-902.37,0.00041369,31]
[312235780,1705697454958,-500.0,0.00041369,31]
[312235782,1705697454968,-500.0,0.00041369,31]
[312235784,1705697454977,-500.0,0.00041369,31]
[312235786,1705697454986,-500.0,0.00041369,31]
[312235788,1705697454995,-866.88,0.00041369,31]
[312235790,1705697455005,-518.15668923,0.00041369,31]
[312235792,1705697455014,-500.0,0.00041369,31]
[312235794,1705697455024,-500.0,0.00041369,31]
[312235796,1705697455033,-500.0,0.00041369,31]
[312235798,1705697455042,-1222.22,0.00041369,31]
[312235800,1705697455052,-500.0,0.00041369,31]
[312235802,1705697455061,-500.0,0.00041369,31]
[312235804,1705697455070,-575.55722469,0.00041369,31]
[312235806,1705697455079,-500.0,0.00041369,31]
[312235808,1705697455089,-500.0,0.00041369,31]
[312235810,1705697455098,-864.4,0.00041369,31]
[312235812,1705697455107,-500.0,0.00041369,31]
[312235814,1705697455116,-500.0,0.00041369,31]
[312235816,1705697455125,-1726.18,0.00041369,31]
[312235819,1705697455134,-1304.61,0.00041369,31]
[312235820,1705697455143,-500.0,0.00041369,31]
[312235822,1705697455152,-500.0,0.00041369,31]
[312235824,1705697455163,-854.56,0.00041369,31]
[312235826,1705697455172,-500.0,0.00041369,31]
[312235829,1705697455181,-517.44140967,0.00041369,31]
[312235831,1705697455191,-500.0,0.00041369,31]
[312235832,1705697455200,-500.0,0.00041369,31]
[312235835,1705697455211,-2687.15,0.00041369,31]
[312235837,1705697455221,-500.0,0.00041369,31]
[312235838,1705697455230,-500.0,0.00041369,31]
[312235840,1705697455239,-500.0,0.00041369,31]
[312235843,1705697455249,-500.0,0.00041369,31]
[312235846,1705697455268,-500.0,0.00041369,31]
[312235849,1705697455285,-364.49209463,0.00041369,31]
[312235852,1705697455304,-500.0,0.00041369,31]
[312235855,1705697455324,-500.0,0.00041369,31]
[312235858,1705697455340,-500.0,0.00041369,31]